Cogmind - Beta 15 @@@ ROGUE MODE // 2025.10.04 @ 21:22:28 Player: DietSnapple Result: Destroyed by S-10 Pest with Light Assault Rifle Performance ------------- Evolutions (2) 1000 Regions Visited (4) 800 Robots Destroyed (14) 70 Value Destroyed (398) 398 Prototype IDs (0) 0 Alien Tech Used (0) 0 Bonus (0) 0 TOTAL SCORE: 2268 Bonus ------- None Cogmind --------- Core Integrity 0/550 Matter 290/300 Energy 279/300 System Corruption 0% Temperature Cool (0) Movement Walking (90) Location -8/Materials Parts ------- > --- POWER (1) -------- (None) > --- PROPULSION (4) --- VSS Leg VSS Leg VSS Leg > --- UTILITY (4) ------ Compact Battery Signal Interpreter Improved Utility Shielding System Shield > --- WEAPON (2) ------- Great Maul > --- INVENTORY (5) ---- Compact Battery (200) Field Laser Field Laser Peak State ------------ > --- POWER ------------ Light Deuterium Engine > --- PROPULSION ------- Carbon-fiber Leg VSS Leg VSS Leg VSS Leg > --- UTILITY ---------- Compact Battery Signal Interpreter Improved Utility Shielding System Shield > --- WEAPON ----------- Great Maul > --- INVENTORY -------- Compact Battery Field Laser Field Laser [Rating: 28] Favorites ----------- Power Ion Engine Engine Ion Engine Power Core Light Nuclear Core Propulsion Flight Unit Leg Carbon-fiber Leg Wheel Compact Wheel Hover Unit Hover Unit Flight Unit Flight Unit Utility Signal Interpreter Device Seismic Detector Storage Compact Battery Processor Signal Interpreter Hackware System Shield Protection Improved Utility Shielding Weapon Great Maul Energy Gun Heavy Laser Ballistic Gun Assault Rifle Launcher Grenade Launcher Special Weapon Mining Laser Impact Weapon Great Maul Build | -11 -10 -10 -9 -8 ------- Run | Yrd Mat Min Mat Mat Slots Evolved 4 | . . . 2 2 Power . | . . . . . Propulsion 2 | . . . 1 1 Utility 2 | . . . 1 1 Weapon . | . . . . . Parts Attached 41 | 7 11 1 6 16 Power 7 | 1 3 . 1 2 Engine 6 | 1 2 . 1 2 Core 1 | . 1 . . . Reactor . | . . . . . Propulsion 14 | 2 5 . 1 6 Treads . | . . . . . Leg 5 | . . . . 5 Wheel 2 | 2 . . . . Hover 3 | . 2 . . 1 Flight 4 | . 3 . 1 . Utility 14 | 2 2 1 3 6 Device 4 | 1 1 . 1 1 Storage 4 | 1 . . 1 2 Processor 4 | . 1 1 1 1 Hackware 1 | . . . . 1 Protection 1 | . . . . 1 Artifact . | . . . . . Weapon 6 | 2 1 . 1 2 Energy Gun 1 | . . . . 1 Energy Cannon . | . . . . . Ballistic Gun 2 | 2 . . . . Ballistic Cannon . | . . . . . Launcher 1 | . 1 . . . Special Weapon 1 | . . . 1 . Impact Weapon 1 | . . . . 1 Slashing Weapon . | . . . . . Piercing Weapon . | . . . . . Special Melee Weapon . | . . . . . Unidentified Prototypes . | . . . . . Parts Lost 20 | . 4 . 8 8 Power 5 | . 1 . 2 2 Propulsion 9 | . 2 . 3 4 Utility 3 | . . . 1 2 Weapon 3 | . 1 . 2 . Highest Loss Streak 8 | . 2 . 8 4 To Critical Strikes . | . . . . . Average Backups 1 | . 3 2 2 1 Power . | . . . . . Propulsion . | . . 1 . . Utility . | . 1 1 . . Weapon . | . 1 . . . Tool/Special . | . . . . . Unused Backups 3 | . . . . 3 Power . | . . . . . Propulsion . | . . . . . Utility 1 | . . . . 1 Weapon 2 | . . . . 2 Tool/Special . | . . . . . Average Slot Usage (%) 68 | . 69 85 78 60 Engine 8 | . 12 14 9 5 Leg 5 | . . . . 12 Wheel 1 | . 5 . . . Hover 3 | . 11 . . . Flight 9 | . 1 28 28 1 Device 8 | . 18 14 11 1 Storage 4 | . 3 . . 8 Processor 9 | . 1 14 19 9 Hackware 3 | . . . . 8 Protection 2 | . . . . 4 Ballistic Gun 4 | . 10 14 3 . Special Weapon 1 | . . . 5 . Impact Weapon 3 | . . . . 7 Peak Build Rating 28 | 7 8 6 10 28 Average Rating 10 | 4 4 6 8 17 On Entrance 5 | . 7 6 6 6 Naked Turns . | . . . . . Heaviest Build 14 | 14 14 6 7 12 Greatest Support 51 | 32 32 8 12 51 Greatest Overweight (x) 2 | . 2 . . 2 Average Overweight (x) . | . . . . . Largest Inventory Capacity 8 | 8 8 5 5 5 Average Capacity 5 | 6 5 5 5 5 Most Carried 5 | 1 5 3 4 4 Average Carried 1 | . 3 2 2 1 Final Capacity 8 | 8 5 5 5 5 Final Carried 3 | 1 2 2 1 3 Class Distribution -------------------- 78% | Mutant 15% | Scavenger-Mutant 5% | Scavenger-Sprinter Dominant Class ---------------- Mutant | -10/Materials Scavenger-Mutant | -10/Mines Scavenger-Mutant | -9/Materials Mutant | -8/Materials Resources | -11 -10 -10 -9 -8 ----------- Run | Yrd Mat Min Mat Mat Matter Collected 605 | 212 131 . 17 245 Remotely . | . . . . . Salvage Created 449 | 10 165 . 17 257 Parts 34 | 5 19 . 1 9 Haulers Intercepted . | . . . . . Recyclers Shooed . | . . . . . Parts Field Recycled . | . . . . . Retrieved Matter . | . . . . . Parts Self-Destructed . | . . . . . Prevented . | . . . . . Kills | -11 -10 -10 -9 -8 ------- Run | Yrd Mat Min Mat Mat Combat Hostiles Destroyed 11 | . 6 . 1 4 Melee 2 | . . . . 2 Guns 6 | . 5 . 1 . AOE 1 | . 1 . . . Classes Destroyed 5 | 1 3 . . 1 Tunneler 1 | 1 . . . . Recycler 1 | . . . . 1 Operator 1 | . 1 . . . Swarmer 4 | . 3 . 1 . Grunt 7 | . 3 . . 4 Best Kill Streak 5 | 1 5 . 1 1 Combat Bots Only 5 | . 5 . 1 1 Max Kills in Single Turn 1 | 1 1 . 1 1 Gunslinging . | . . . . . Exploded 1 | . 1 . . . Melee 1 | . . . . 1 Uniques/NPCs Destroyed . | . . . . . Combat | -11 -10 -10 -9 -8 -------- Run | Yrd Mat Min Mat Mat Hostile Shots Fired 273 | . 34 . 90 149 Missed 105 | . 6 . 44 55 Hits 168 | . 28 . 46 94 Projectile 168 | . 28 . 46 94 Critical Strikes 4 | . . . . 4 Damage Taken 2093 | . 437 . 451 1205 Core 880 | . 127 . 203 550 Absorbed by Shields . | . . . . . Redirected to Shielding 20 | . . . . 20 Core Remaining (%) 66 | 100 . 49 49 . Volleys Fired 35 | 1 19 . 12 3 Largest 2 | 2 1 . 1 1 Hottest 100 | 40 30 . 100 69 Shots Fired 36 | 2 19 . 12 3 Gun 28 | 2 18 . 5 3 Cannon . | . . . . . Launcher 1 | . 1 . . . Special 7 | . . . 7 . Kinetic 25 | 2 18 . 5 . Thermal 10 | . . . 7 3 Explosive 1 | . 1 . . . Electromagnetic . | . . . . . Robot Hit Streak 3 | 1 3 . 1 1 Robot Miss Streak 3 | . 3 . 2 1 Penetration Max . | . . . . . Secondary Targets . | . . . . . Shots Hit Robots 30 | 1 10 . 2 17 Core Hits 20 | 2 9 . 1 8 Critical Kills 1 | . . . . 1 Critical Parts Destroyed 3 | . . . . 3 Critical Strikes 4 | . . . . 4 Smash 4 | . . . . 4 Melee Attacks 24 | . . . . 24 Impact 24 | . . . . 24 Slashing . | . . . . . Piercing . | . . . . . Sneak Attacks 2 | . . . . 2 Combat Hostiles . | . . . . . Follow-up Attacks . | . . . . . Damage Inflicted 1137 | 22 234 . 40 841 Guns 236 | 22 156 . 40 18 Cannons . | . . . . . Explosions 78 | . 78 . . . Melee 785 | . . . . 785 Ramming 38 | . . . . 38 Kinetic 218 | 22 156 . 40 . Thermal 18 | . . . . 18 Explosive 78 | . 78 . . . Electromagnetic . | . . . . . Impact 785 | . . . . 785 Slashing . | . . . . . Piercing . | . . . . . Highest Corruption 1 | . 1 1 . . Average Corruption 1 | . 1 1 . . Corruption Purged . | . . . . . Corruption Blocked . | . . . . . Effects 1 | . 1 . . . Energy Discharges 1 | . 1 . . . Overload Shots . | . . . . . Overflow Damage 140 | . 17 . . 123 Projectiles . | . . . . . Explosions 17 | . 17 . . . Melee 123 | . . . . 123 Knockbacks 4 | . . . . 4 Impact 4 | . . . . 4 Kinetic . | . . . . . Secondary . | . . . . . Self-Inflicted Damage 163 | . 145 . . 18 Shots 3 | . 3 . . . Rammed 10 | . . . . 10 Targets Rammed 10 | . . . . 10 Kicked . | . . . . . Crushed . | . . . . . Highest Temperature 95 | . 3 . 95 30 Average Temperature 31 | . 1 . 38 12 Received Heat Transfer 693 | . 102 . 96 495 Siege Activations . | . . . . . Martial Activations . | . . . . . Shielding Activations . | . . . . . Robots Disrupted . | . . . . . Combat Hostiles . | . . . . . Robots Corrupted 2 | . . . . 2 Combat Hostiles 2 | . . . . 2 Parts Fried 3 | . . . . 3 Impact Corruptions 4 | . . . . 4 Robots Melted . | . . . . . Combat Hostiles . | . . . . . Parts Melted . | . . . . . Heat Transferred 37 | . . . . 37 Parts Sabotaged . | . . . . . Parts Stolen . | . . . . . Parts Stripped . | . . . . . Power Chain Reactions . | . . . . . Alert | -11 -10 -10 -9 -8 ------- Run | Yrd Mat Min Mat Mat Maximum Alert Level 1 | . . . 1 . Low Security (%) 97 | 100 100 100 85 100 Level 1 2 | . . . 14 . Level 2 . | . . . . . Level 3 . | . . . . . Level 4 . | . . . . . Level 5 . | . . . . . High Security . | . . . . . Max Security . | . . . . . Peak Influence 221 | 5 112 47 221 100 Initial 78 | . . 37 10 78 Average 45 | . 39 34 106 36 Influence Increases 823 | 5 237 30 356 195 Destroy 0b10 Robot/C 220 | . 120 . 20 80 Destroy 0b10 Robot/NC 15 | 5 5 . . 5 Destroy Leader 60 | . 30 . 10 20 Successful Hack 5 | . . . 5 . Disable Machine 30 | . 30 . . . Destroy Structure 43 | . 37 . 6 . Partial Spotted 15 | . 15 . . . Lose Combat Pursuer 435 | . . 30 315 90 Influence Decreases 818 | 5 140 100 197 376 Entered New Map 185 | . . 60 17 108 Time Decay 445 | 5 100 40 100 200 Lost Part 188 | . 40 . 80 68 Squads Dispatched 5 | . 1 . 3 1 Investigation . | . . . . . Extermination . | . . . . . Reinforcement 5 | . 1 . 3 1 Assault . | . . . . . Garrison . | . . . . . Intercept . | . . . . . Searches Triggered . | . . . . . Construction Impeded . | . . . . . Haulers Reinforced . | . . . . . Active Scanning Responses . | . . . . . Cargo Convoy Interrupts . | . . . . . Stealth | -11 -10 -10 -9 -8 --------- Run | Yrd Mat Min Mat Mat Distress Signals 3 | . . . 2 1 Communications Jammed . | . . . . . Distress Signals . | . . . . . Times Spotted 65 | . 9 1 37 18 Peak Tracking Total 13 | . 5 2 13 7 Tactical Retreats 12 | . . 1 7 4 Traps | -11 -10 -10 -9 -8 ------- Run | Yrd Mat Min Mat Mat Traps Triggered 1 | . 1 . . . Indirectly . | . . . . . Trap Hack Attempts . | . . . . . Triggered . | . . . . . Disarmed . | . . . . . Reprogrammed . | . . . . . Reused . | . . . . . Traps Extracted . | . . . . . Installed . | . . . . . Triggered . | . . . . . Machines | -11 -10 -10 -9 -8 ---------- Run | Yrd Mat Min Mat Mat Machines Disabled 2 | . 2 . . . Max in Single Turn 2 | . 2 . . . Machines Repaired . | . . . . . Machines Dismantled . | . . . . . Machines Sabotaged . | . . . . . Overloaded Fab Kills . | . . . . . Hacking | -11 -10 -10 -9 -8 --------- Run | Yrd Mat Min Mat Mat Machines Accessed 1 | . . . 1 . Terminals 1 | . . . 1 . Fabricators . | . . . . . Repair Stations . | . . . . . Recycling Units . | . . . . . Scanalyzers . | . . . . . Garrison Access . | . . . . . Total Hacks 1 | . . . 1 . Successful 1 | . . . 1 . Failed . | . . . . . Catastrophic . | . . . . . Database Lockouts . | . . . . . Manual . | . . . . . Terminals 1 | . . . 1 . Fabricators . | . . . . . Repair Stations . | . . . . . Recycling Units . | . . . . . Scanalyzers . | . . . . . Garrison Access . | . . . . . Terminal Hacks 1 | . . . 1 . Zone Layout 1 | . . . 1 . Fabricator Hacks . | . . . . . Repair Station Hacks . | . . . . . Recycling Unit Hacks . | . . . . . Scanalyzer . | . . . . . Garrison Access Hacks . | . . . . . Unauthorized Hacks . | . . . . . Terminals . | . . . . . Fabricators . | . . . . . Repair Stations . | . . . . . Recycling Units . | . . . . . Scanalyzers . | . . . . . Garrison Access . | . . . . . Data Cores Recovered . | . . . . . Used . | . . . . . Hacking Detections 1 | . . . 1 . Full Trace Events . | . . . . . Feedback Events . | . . . . . Feedback Blocked . | . . . . . Robot Schematics Acquired . | . . . . . Robots Built . | . . . . . Authchips . | . . . . . Time . | . . . . . Total Robot Build Rating . | . . . . . Part Schematics Acquired . | . . . . . Parts Built . | . . . . . Authchips . | . . . . . Time . | . . . . . Total Part Build Rating . | . . . . . Parts Repaired . | . . . . . Time . | . . . . . Parts Recycled . | . . . . . Recycled Matter . | . . . . . Retrieved Matter . | . . . . . Retrieved Components . | . . . . . Parts Scanalyzed . | . . . . . Part Schematics Acquired . | . . . . . Parts Damaged . | . . . . . Bothacking | -11 -10 -10 -9 -8 ------------ Run | Yrd Mat Min Mat Mat Used RIF Installer . | . . . . . Robots Hacked . | . . . . . Non-combat . | . . . . . Combat . | . . . . . Robot Hacks Applied . | . . . . . Relay Couplers Released . | . . . . . Fabnet Peak Effective % . | . . . . . Robots Rewired . | . . . . . Allies Hacked . | . . . . . Hacks Repelled . | . . . . . Allies | -11 -10 -10 -9 -8 -------- Run | Yrd Mat Min Mat Mat Total Allies . | . . . . . Largest Group . | . . . . . Highest-Rated Group . | . . . . . Highest-Rated Ally . | . . . . . Total Orders . | . . . . . Ally Attacks . | . . . . . Total Damage . | . . . . . Kills . | . . . . . Allies Corrupted . | . . . . . Allies Melted . | . . . . . Intel | -11 -10 -10 -9 -8 ------- Run | Yrd Mat Min Mat Mat Active Infowar (turns) 667 | 45 320 99 203 . Structural 112 | . 112 . . . Seismic 667 | 45 320 99 203 . Robot Analysis Total . | . . . . . Derelict Logs Recovered . | . . . . . Drone Launches . | . . . . . Drone Recoveries . | . . . . . Exploration | -11 -10 -10 -9 -8 ------------- Run | Yrd Mat Min Mat Mat Turns Passed 1434 | 176 320 99 256 583 Spaces Moved 1857 | 167 327 261 608 494 Core 62 | 10 12 . . 40 Treads . | . . . . . Legs 308 | . . . . 308 Wheels 212 | 157 55 . . . Hover 219 | . 217 . . 2 Flight 1056 | . 43 261 608 144 Fastest Speed 32 | 50 37 37 32 35 Average Speed 61 | 97 75 37 33 87 Slowest Speed 185 | 100 185 37 35 150 Overloaded Moves . | . . . . . Propulsion Burnouts . | . . . . . Robots Hopped 11 | . . 1 10 . Potential Cave-ins . | . . . . . Cave-ins Triggered . | . . . . . Exploration Rate (%) 40 | 6 35 55 81 26 Regions Visited 4 Branch Regions 1 Pre-discovered Areas . | . . . . . Known Exits Taken 2 | . . 1 1 . Unknown Exits Taken 2 | 1 1 . . . Scrap Searched 1 | . . 1 . . Spaces Dug 7 | . . . 7 . Terrain Destroyed 46 | . 39 . 7 . Melee . | . . . . . Projectile 7 | . . . 7 . AOE 39 | . 39 . . . Terrain Rammed . | . . . . . Walls Destroyed . | . . . . . Machines Disabled . | . . . . . Actions | -11 -10 -10 -9 -8 --------- Run | Yrd Mat Min Mat Mat Total 2031 | 175 379 262 623 592 Wait 43 | . 9 . . 34 Move 1831 | 166 326 258 587 494 Hop 11 | . . 1 10 . Pick Up 18 | 1 4 1 4 8 Fast Attach 18 | 7 2 . . 9 Attach 18 | . 6 1 7 4 Detach 8 | . 5 1 1 1 Swap 10 | . 5 . 2 3 Drop 5 | . 3 . . 2 Fire 35 | 1 19 . 12 3 Melee 24 | . . . . 24 Ram 10 | . . . . 10 Kick . | . . . . . Crush . | . . . . . Escape Stasis . | . . . . . Rewire . | . . . . . Trap . | . . . . . Miscellaneous . | . . . . . Route ------- -11/Scrapyard -10/Materials -10/Mines -9/Materials (discovered 2 exits: *Mat / *Min) -8/Materials History --------- Turn | Location | Event 4 | -11/Scrapyard | Discovered new exit (range 16) 177 | -11/Scrapyard | Entered Materials 305 | -10/Materials | Build established: Mutant 345 | -10/Materials | Discovered new exit (range 12) 453 | -10/Materials | Core integrity fell below 50% 497 | -10/Materials | Entered Mines 576 | -10/Mines | Found a hidden stash of uninstalled traps 583 | -10/Mines | Discovered new exit (range 9) 596 | -10/Mines | Identified exit to Materials 596 | -10/Mines | Entered Materials 596 | -9/Materials | Evolved 2 slots: Propulsion x1, Utility x1 649 | -9/Materials | Discovered new exit (range 13) 662 | -9/Materials | Identified exit to Mines 846 | -9/Materials | Discovered new exit (range 14) 851 | -9/Materials | Identified exit to Materials 852 | -9/Materials | Entered another Materials area 852 | -8/Materials | Evolved 2 slots: Propulsion x1, Utility x1 871 | -8/Materials | Lost 8 parts (2p3n1u2w) 974 | -8/Materials | Lost 4 parts (1p1n2u) 979 | -8/Materials | Core integrity fell below 50% 1416 | -8/Materials | Core integrity fell below 20% 1435 | -8/Materials | Destroyed by S-10 Pest with Light Assault Rifle Last Messages --------------- 01341_ G-50 Soldier suffers critical hit (Smash). 01341_ Destroyed Lgt. Angular Momentum Engine. 01341_ G-50 Soldier system corrupted by crushing effect. 01341_ G-50 Soldier knocked back. 01359_ K-01 Serf collects debris. 01364_ R-06 Scavenger collects Lgt. Ion Engine. 01367_ K-01 Serf collects debris. 01369_ Sneak attack on R-06 Scavenger. 01369_ R-06 Scavenger suffers critical hit (Smash). 01369_ R-06 Scavenger destroyed. 01370_ Critical hit (Burn: +37). 01370_ K-01 Serf collects debris. 01374_ O-24 Administrator: "IFF HANDSHAKE FAILED. SECURING TERMINAL." 01391_ ALERT: Hostiles spotted, dispatching reinforcements to Terminal M005. 01395_ Acquired VSS Leg. 01404_ Carbon-fiber Leg destroyed. 01414_ Lgt. Deuterium Engine destroyed. 01428_ S-10 Pest knocked back. 01432_ S-10 Pest destroyed. Map ----- +----------------------------------------------------+ | ??????????????????????????????????????????????? | | ??????????????????????????????????????????????? | | ??????????????????????????????????????????????? | | ??????????????????????????????????????????????? | | ??????????????????????????????????????????????? | | ??????????????????????????????????????????????? | | ??????????????????????????????????????????????? | | ??????????????????????????????????????????????? | | ??????????????????????????????????????????????? | | ??????????????????????????????????????????????? | | ??????????????????????????????????????????????? | | ??????????????????????????????????????????????? | | ??????????????????????????????????????????????? | | ?????????????????? ?????????????????????????? | | ????????????????? ?????????????????????????? | | ????????????????? ?????????????????????????? | | ??????????????????! ?????????????????????????? | | ??????????????????! ?????????????????????????? | | ?????????????????? ?????????????????????????? | | ?????????????????? +????????????????????????? | | ?????????????????? #????????????????????????? | | ??????????????????# #????????????????????????? | | ??????????????????+ #????????????????????????? | | ??????????????????# ########?????????????????? | | ??????????????????# # #?? ????????????? | | ??????????????????# #@a +?? ? ?????????? | | ??????????????????# #sg![ #?# "???????? | | ??????????????????# + s[ #?# ? "?? ????? | | ??????????????????# #gs #?# "" """ ???? | | ??????????????????# # #?# "T ???? | | ??????????????????# #####+##?# "" ???? | | ????????########### #???# #??# ???? | | ????????# # ##### #### ???? | | ????????# """ """ # T## ???? | | ????????# """ """ # ### ???? | | ????????# """ """ # #?# == ?????? | | ????????# # ### == #??????????? | | ????????# # ##T #??????????? | | ????????# # ### #??????????? | | ????????# ! # ### ! #??????????? | | ????????#####+##### """ #??????????? | | ?????????# """ #?######???? | | ?????????# """ #? #???? | | ?????????# # [ #???? | | ?????????####+########## = # #???? | | ?????????# #????## + "T" #???? | | ?????????#""""" #?????# # """ #???? | | ?????????#""""" #?????# [* # #??? | | ?????????#""""" = #?????# ** ##########+# | | ?????????#""""" #?????# [** | +----------------------------------------------------+ Best States ------------- Heat Dissipation 42 Energy Generation 14 Energy Capacity 450 Matter Stores 300 Matter Capacity 300 Sight Range 16 Terrain Scan Density 85 Utility Shielding 66 Evasion (%) 71 Targeting Accuracy 5 Defensive Hacking 10 Item Schematics ----------------- None Robot Schematics ------------------ None Fabricated ------------ Nothing Repaired ---------- Nothing Alien Tech Used ----------------- None Achievements -------------- None Challenges ------------ None Game ------ Seed HeavyTerrorAutogun Manual? 0 Play Time 00:21:17 Cumulative 9.9 hours Start 2025.10.04 @ 20:55:32 End 2025.10.04 @ 21:22:28 Sessions 1 Manual Loads 0 Difficulty Rogue Special Mode None Game No. 29 Rogue 22 Adventurer 7 Explorer 0 Win Type - Total 0 Types 0/0/0/0/0/0/0/0/0/0 Lore% 2 Gallery% 14 Achievement% 12 Wizard Run 0 Options --------- Layout 1 ASCII 0 Keyboard 1 Movement Vi Keybinds 0 Fullscreen 1 Font 24/Smallcaps Map View 76x35 Zoom Use 0% Tactical HUD 1 Map Filters NONE Filters NONE Steam 1 RUN: daf4d7e9-9cee-43f5-9fd3-29796da5104d